bitfinex-derivatives/quotes_BTCF0:USTF0_20251125
["timestamp","ask_amount","ask_price","bid_price","bid_amount"]
[1764029437733,0.08694673,88224.0,88223.0,0.0689]
[1764029437929,0.10827673,88224.0,88223.0,0.0689]
[1764029438840,0.10827673,88224.0,88223.0,0.03387]
[1764029439229,0.10827673,88224.0,88223.0,0.0689]
[1764029439829,0.10927673,88224.0,88223.0,0.0689]
[1764029440141,0.10927673,88224.0,88223.0,0.0802388]
[1764029440842,0.10927673,88224.0,88223.0,0.4702388]
[1764029441335,0.00319803,88224.0,88223.0,0.8310388]
[1764029442040,0.00219803,88224.0,88223.0,0.8310388]
[1764029442342,0.001,88224.0,88223.0,0.8310388]
[1764029442842,0.0793481,88229.0,88228.0,0.06689]
[1764029443041,0.08154613,88229.0,88228.0,0.06689]
[1764029445036,0.08254613,88229.0,88228.0,0.06689]
[1764029445940,0.0986887,88224.0,88223.0,0.42769]
[1764029446141,0.10088673,88224.0,88223.0,0.08689]
[1764029447641,0.10088673,88224.0,88223.0,0.06689]
[1764029448038,0.10188673,88224.0,88223.0,0.08689]
[1764029448544,0.10188673,88224.0,88223.0,0.06689]
[1764029448947,0.10088673,88224.0,88223.0,0.06689]
[1764029449147,0.10188673,88224.0,88223.0,0.06689]
[1764029449645,0.08254673,88224.0,88223.0,0.45769]
[1764029450241,0.08254673,88224.0,88223.0,0.85769]
[1764029450739,0.10188673,88224.0,88223.0,0.06689]
[1764029451541,0.10188673,88224.0,88223.0,0.07689]
[1764029451741,0.10188673,88224.0,88223.0,0.06689]
[1764029452536,0.10188673,88224.0,88223.0,0.07689]
[1764029452845,0.10188673,88224.0,88223.0,0.06689]
[1764029455147,0.09054803,88224.0,88223.0,0.81769]
[1764029455341,0.07120803,88224.0,88223.0,0.81769]
[1764029455536,0.03586803,88224.0,88223.0,0.81769]
[1764029455741,0.00319803,88224.0,88223.0,0.81769]
[1764029455945,0.001,88224.0,88223.0,0.81769]
[1764029456346,0.00017009,88232.0,88231.0,0.06295]
[1764029456545,0.00017009,88232.0,88231.0,0.42375]
[1764029456749,0.00017009,88232.0,88231.0,0.4350878]
[1764029456945,0.00017009,88232.0,88231.0,0.8950878]
[1764029457144,0.00017009,88232.0,88231.0,0.4350878]
[1764029457446,0.00017009,88232.0,88223.0,0.3608]
[1764029457447,0.06173009,88232.0,88223.0,0.08154593]
[1764029457637,0.06156,88223.0,88222.0,0.03937]
[1764029457839,0.0728997,88216.0,88215.0,0.00017009]
[1764029458039,0.43589773,88216.0,88215.0,0.00017009]
[1764029458651,0.0729014,88203.0,88202.0,0.14449593]
[1764029458846,0.07509943,88203.0,88202.0,0.57449593]
[1764029459042,0.07509943,88203.0,88202.0,0.06295]
[1764029459349,0.00219803,88203.0,88202.0,0.5142915]
[1764029460350,0.00017009,88211.0,88210.0,0.0742905]
[1764029460542,0.00017009,88211.0,88210.0,0.8750905]
[1764029460945,0.01151049,88211.0,88210.0,0.86375]
[1764029461145,0.00017009,88211.0,88210.0,0.86375]
[1764029462050,0.0728993,88220.0,88219.0,0.06295]
[1764029462247,0.07509733,88220.0,88219.0,0.06295]
[1764029467254,0.07509733,88220.0,88219.0,0.52295]
[1764029467649,0.07509733,88220.0,88219.0,0.06295]
[1764029470755,0.00219803,88220.0,88219.0,0.67375]
[1764029470959,0.06125009,88228.0,88227.0,0.0693583]
[1764029471147,0.06344812,88228.0,88227.0,0.0693583]
[1764029471348,0.06344812,88228.0,88227.0,0.4301583]
[1764029471655,0.06344812,88228.0,88227.0,0.41882]
[1764029472658,0.06344812,88228.0,88227.0,0.3608]
[1764029472955,0.06108,88221.0,88220.0,0.08154588]
[1764029473153,0.06327803,88221.0,88220.0,0.08154588]
[1764029473358,0.0724192,88220.0,88219.0,0.00017009]
[1764029473554,0.07869,88218.0,88217.0,0.03434597]
[1764029473859,0.07869,88218.0,88201.0,0.3608]
[1764029473860,0.072421,88206.0,88205.0,0.05802]
[1764029474052,0.07461903,88206.0,88205.0,0.05802]
[1764029477554,0.07561903,88206.0,88205.0,0.05802]
[1764029478759,0.07461903,88206.0,88205.0,0.05802]
[1764029479958,0.07461903,88206.0,88205.0,0.45802]
[1764029480262,0.07461903,88206.0,88205.0,0.05802]
[1764029481459,0.06327803,88206.0,88205.0,0.42802]
[1764029481759,0.42188,88223.0,88222.0,0.05802]
[1764029481960,0.83407803,88223.0,88222.0,0.05802]
[1764029482961,0.0724199,88215.0,88214.0,0.41882]
[1764029483159,0.07461793,88215.0,88214.0,0.3608]
[1764029483466,0.00219803,88215.0,88206.0,0.087881]
[1764029483668,0.00219803,88215.0,88214.0,0.05802]
[1764029484165,0.06327803,88215.0,88214.0,0.05802]
[1764029484462,0.06108,88210.0,88209.0,0.41882]
[1764029484660,0.07461853,88210.0,88209.0,0.41882]
[1764029485062,0.07461853,88210.0,88209.0,0.3608]
[1764029486866,0.07461853,88210.0,88209.0,0.3901]
[1764029487168,0.07461853,88210.0,88209.0,0.3608]
[1764029487768,0.07461853,88210.0,88209.0,0.41882]
[1764029488671,0.07561853,88210.0,88209.0,0.41882]
[1764029489173,0.07561853,88210.0,88209.0,0.3901]
[1764029489560,0.07461853,88210.0,88209.0,0.3901]
[1764029489963,0.07461853,88210.0,88209.0,0.0293]
[1764029490567,0.07461853,88210.0,88209.0,0.05802]
[1764029490568,0.07561853,88210.0,88209.0,0.05802]
[1764029491762,0.07461853,88210.0,88209.0,0.05802]
[1764029492057,0.07561853,88210.0,88209.0,0.05802]
[1764029493469,0.07461853,88210.0,88209.0,0.05802]
[1764029498173,0.04382853,88210.0,88209.0,0.46802]
[1764029498362,0.07461853,88210.0,88209.0,0.05802]
[1764029499872,0.07461853,88210.0,88209.0,0.43802]
[1764029500571,0.3608,88213.0,88212.0,0.0693602]
[1764029500870,0.0728887,88224.0,88223.0,0.05996]
[1764029501064,0.43508673,88224.0,88223.0,0.05996]
[1764029502168,0.0697797,88216.0,88215.0,0.00017009]
[1764029502372,0.51197773,88216.0,88215.0,0.00017009]
[1764029503967,0.51297773,88216.0,88215.0,0.00017009]
[1764029504175,0.51397773,88216.0,88215.0,0.00017009]
[1764029504872,0.51297773,88216.0,88215.0,0.00017009]
[1764029505067,0.51397773,88216.0,88215.0,0.00017009]
[1764029506875,0.0697809,88207.0,88206.0,0.22899793]
[1764029507069,0.07197893,88207.0,88206.0,0.05921]
[1764029507972,0.07297893,88207.0,88206.0,0.05921]
[1764029508677,0.07297893,88207.0,88206.0,0.07647]
[1764029509470,0.13297893,88207.0,88206.0,0.05921]
[1764029510077,0.13197893,88207.0,88206.0,0.05921]
[1764029510384,0.0697815,88202.0,88201.0,0.05921]
[1764029510686,0.0697819,88199.0,88198.0,0.00017009]
[1764029510977,0.0697831,88190.0,88189.0,0.15137756]
[1764029511178,0.07198113,88190.0,88189.0,0.02855]
[1764029511475,0.07198113,88190.0,88184.0,0.42001]
[1764029511476,0.0697837,88185.0,88184.0,0.42001]
[1764029511677,0.07198173,88185.0,88184.0,0.02855]
[1764029511982,0.0697847,88177.0,88176.0,0.02866325]
[1764029512183,0.07198273,88177.0,88176.0,0.02866325]
[1764029512775,0.07198273,88177.0,88176.0,0.05932325]
[1764029513077,0.07198273,88177.0,88176.0,0.07658325]
[1764029513272,0.07198273,88177.0,88176.0,0.07758325]
[1764029513978,0.07198273,88177.0,88176.0,0.07858325]
[1764029514579,0.07198273,88177.0,88176.0,0.06132325]
[1764029514879,0.07198273,88177.0,88176.0,0.07858325]
[1764029517673,0.07198273,88177.0,88176.0,0.06132325]
[1764029517878,0.13198273,88177.0,88176.0,0.06132325]
[1764029518870,0.13198273,88177.0,88176.0,0.07792325]
[1764029525980,0.05072273,88177.0,88176.0,0.07792325]
[1764029526185,0.42072273,88177.0,88176.0,0.07792325]
[1764029526577,0.44841273,88177.0,88176.0,0.07792325]
[1764029528991,0.44841273,88177.0,88176.0,0.06132325]
[1764029535980,0.38219803,88177.0,88176.0,0.52132325]
[1764029536176,0.14745803,88177.0,88176.0,0.06132325]
[1764029536989,0.46745803,88177.0,88176.0,0.06132325]
[1764029538089,0.46745803,88177.0,88176.0,0.06632325]
[1764029549399,0.64637803,88177.0,88176.0,0.06632325]
[1764029555999,0.41,88177.0,88176.0,0.52632325]
[1764029556200,0.0113441,88182.0,88181.0,0.05398]
[1764029556502,0.3913441,88182.0,88181.0,0.50398]
[1764029556705,0.44880213,88182.0,88181.0,0.05398]
[1764029557496,0.44880213,88182.0,88181.0,0.05498]
[1764029558096,0.44880213,88182.0,88181.0,0.05466923]
[1764029562909,0.01568009,88185.0,88184.0,0.05083]
[1764029563109,0.01568009,88185.0,88184.0,0.49083]
[1764029563403,0.00017009,88185.0,88184.0,0.49083]
[1764029563807,0.063513,88191.0,88190.0,0.06491]
[1764029564309,0.063513,88191.0,88190.0,0.48491]
[1764029564506,0.011343,88191.0,88190.0,0.48491]
[1764029564709,0.037103,88191.0,88190.0,0.47491]
[1764029566003,0.011343,88191.0,88190.0,0.47491]
[1764029566209,0.011343,88191.0,88190.0,0.55645032]
[1764029566706,0.037103,88191.0,88190.0,0.14645032]
[1764029567208,0.011343,88191.0,88190.0,0.50491]
[1764029567413,0.06787009,88199.0,88198.0,0.05083]
[1764029567598,0.07006812,88199.0,88198.0,0.05083]
[1764029568505,0.0635126,88194.0,88193.0,0.41163]
[1764029568705,0.06571063,88194.0,88193.0,0.41163]
[1764029570404,0.06571063,88194.0,88193.0,0.05083]
[1764029570609,0.48571063,88194.0,88193.0,0.05083]
[1764029570812,0.06571063,88194.0,88193.0,0.05083]
[1764029571004,0.47571063,88194.0,88193.0,0.05083]
[1764029571405,0.52571063,88194.0,88193.0,0.05083]
[1764029576917,0.06219803,88194.0,88193.0,0.47083]
[1764029577114,0.01570009,88199.0,88198.0,0.059642]
[1764029577321,0.06480812,88199.0,88198.0,0.0483]
[1764029577617,0.04927812,88199.0,88198.0,0.0483]
[1764029582320,0.00236812,88199.0,88198.0,0.0483]
[1764029582523,0.04927812,88199.0,88198.0,0.0483]
[1764029582721,0.04927812,88199.0,88193.0,0.3608]
[1764029582722,0.0582526,88194.0,88193.0,0.3608]
[1764029583023,0.06045063,88194.0,88193.0,0.3608]
[1764029583223,0.06045063,88194.0,88193.0,0.4091]
[1764029584014,0.0582532,88189.0,88188.0,0.0483]
[1764029584220,0.0113436,88186.0,88185.0,0.02388]
[1764029584524,0.52045163,88186.0,88185.0,0.02388]
[1764029585318,0.51945163,88186.0,88185.0,0.02388]
[1764029586332,0.51945163,88186.0,88185.0,0.0483]
[1764029586729,0.05945163,88186.0,88185.0,0.0483]
[1764029586916,0.05945163,88186.0,88185.0,0.0493]
[1764029590726,0.04910803,88186.0,88185.0,0.06411]
[1764029593323,0.23910803,88186.0,88185.0,0.06411]
[1764029598130,0.46910803,88186.0,88185.0,0.001]
[1764029598529,0.04652,88177.0,88176.0,0.02695325]
[1764029598730,0.47006273,88177.0,88176.0,0.02695325]
[1764029599329,0.51006273,88177.0,88176.0,0.05014325]
[1764029599531,0.04652,88175.0,88165.0,0.3608]
[1764029599739,0.057866,88167.0,88157.0,0.3608]
[1764029600037,0.44906403,88167.0,88157.0,0.3608]
[1764029600225,0.44806403,88167.0,88157.0,0.53065733]
[1764029600722,0.44817659,88167.0,88166.0,0.02212356]
[1764029600926,0.44817659,88167.0,88166.0,0.02312356]
[1764029601127,0.44817659,88167.0,88166.0,0.02512356]
[1764029602933,0.44817659,88167.0,88158.0,0.00017009]
[1764029602934,0.0578671,88159.0,88158.0,0.00017009]
[1764029603231,0.8109766,88159.0,88158.0,0.00017009]
[1764029603442,0.0578694,88141.0,88140.0,0.11856758]
[1764029603737,0.0578694,88141.0,88140.0,0.04503]
[1764029603738,0.06019561,88141.0,88140.0,0.04503]
[1764029603943,0.06019561,88141.0,88140.0,0.45855]
[1764029604134,0.05919561,88141.0,88140.0,0.45855]
[1764029604453,0.05919561,88141.0,88140.0,0.46855]
[1764029605145,0.0578707,88131.0,88130.0,0.41935]
[1764029605343,0.06006873,88131.0,88130.0,0.41935]
[1764029605636,0.06006873,88131.0,88130.0,0.85935]
[1764029605839,0.01354873,88131.0,88130.0,0.85935]
[1764029606033,0.03583873,88131.0,88130.0,0.85935]
[1764029606233,0.06006873,88131.0,88130.0,0.85935]
[1764029606433,0.06006873,88131.0,88130.0,0.86035]
[1764029608747,0.06006873,88131.0,88130.0,0.42035]
[1764029610539,0.04871803,88131.0,88130.0,0.8217008]
[1764029612637,0.00219803,88131.0,88130.0,0.8217008]
[1764029613036,0.02448803,88131.0,88130.0,0.8217008]
[1764029615440,0.01555,88135.0,88134.0,0.0563803]
[1764029615638,0.01555,88135.0,88134.0,0.4563803]
[1764029617347,0.07561823,88135.0,88134.0,0.04503]
[1764029617649,0.05138823,88135.0,88134.0,0.04503]
[1764029617945,0.05138823,88135.0,88134.0,0.50503]
[1764029619148,0.04003803,88135.0,88134.0,0.50503]
[1764029620540,0.01555,88135.0,88134.0,0.50503]
[1764029622354,0.00012818,88141.0,88140.0,0.06066]
[1764029622646,0.00012818,88141.0,88140.0,0.88146]
[1764029622840,0.00012818,88141.0,88140.0,0.8928095]
[1764029623045,0.0113483,88150.0,88148.0,0.0462]
[1764029623238,0.04783812,88149.0,88148.0,0.797]
[1764029623433,0.04783812,88149.0,88148.0,0.407]
[1764029623637,0.04783812,88149.0,88148.0,0.777]
[1764029623838,0.00236812,88149.0,88148.0,0.777]
[1764029624950,0.00017009,88149.0,88148.0,0.777]
[1764029625437,0.02614812,88149.0,88148.0,0.427]
[1764029625633,0.02614812,88149.0,88148.0,0.817]
[1764029626346,0.02614812,88149.0,88148.0,0.427]
[1764029626546,0.02614812,88149.0,88148.0,0.867]
[1764029627048,0.00236812,88149.0,88148.0,0.867]
[1764029628142,0.00017009,88149.0,88148.0,0.867]
[1764029628843,0.393,88175.0,88174.0,0.0462]
[1764029629038,0.84981303,88175.0,88174.0,0.0462]
[1764029629239,0.61981303,88175.0,88174.0,0.0462]
[1764029630943,0.62081303,88175.0,88174.0,0.0462]
[1764029631452,0.62181303,88175.0,88174.0,0.0462]
[1764029632045,0.62181303,88175.0,88166.0,0.00017019]
[1764029632046,0.056816,88167.0,88166.0,0.00017019]
[1764029632346,0.43901403,88167.0,88166.0,0.00017019]
[1764029632943,0.79981403,88167.0,88166.0,0.00017019]
[1764029633146,0.0568183,88149.0,88148.0,0.407]
[1764029633462,0.05901633,88149.0,88148.0,0.407]
[1764029637651,0.05901633,88149.0,88148.0,0.0462]
[1764029639245,0.01354633,88149.0,88148.0,0.0462]
[1764029639940,0.06053633,88149.0,88148.0,0.0462]
[1764029640550,0.0583394,88141.0,88140.0,0.40762]
[1764029640850,0.06053743,88141.0,88140.0,0.04682]
[1764029641954,0.06053743,88141.0,88140.0,0.06033]
[1764029646253,0.06053743,88141.0,88140.0,0.04682]
[1764029647854,0.06053743,88141.0,88140.0,0.06033]
[1764029650457,0.06053743,88141.0,88140.0,0.04682]
[1764029651759,0.0571002,88135.0,88134.0,0.04506]
[1764029651951,0.05929823,88135.0,88134.0,0.04506]
[1764029653354,0.05929823,88135.0,88134.0,0.05915]
[1764029654861,0.05929823,88135.0,88134.0,0.04506]
[1764029656754,0.42929823,88135.0,88134.0,0.04506]
[1764029657058,0.05929823,88135.0,88134.0,0.04506]
[1764029657268,0.0571012,88127.0,88126.0,0.02264369]
[1764029657560,0.05929923,88127.0,88126.0,0.04534369]
[1764029657858,0.00219803,88127.0,88126.0,0.04534369]
[1764029658255,0.04794803,88127.0,88126.0,0.04534369]
[1764029659157,0.68874803,88127.0,88126.0,0.00228369]
[1764029659352,0.82874803,88127.0,88126.0,0.00228369]
[1764029660155,0.82874803,88127.0,88126.0,0.00128369]
[1764029660465,0.0571029,88114.0,88113.0,0.04516388]
[1764029660653,0.05930093,88114.0,88113.0,0.04516388]
[1764029661148,0.48930093,88114.0,88113.0,0.02246388]
[1764029661349,0.48930093,88114.0,88113.0,0.04516388]
[1764029661957,0.48930093,88114.0,88113.0,0.02246388]
[1764029662150,0.48930093,88114.0,88113.0,0.04616388]
[1764029662750,0.48930093,88114.0,88113.0,0.04716388]
[1764029663457,0.0700734,88110.0,88109.0,0.04506]
[1764029663663,0.07227143,88110.0,88109.0,0.04506]
[1764029664562,0.07237531,88110.0,88109.0,0.04506]
[1764029665164,0.07237531,88110.0,88109.0,0.04606]
[1764029665852,0.07237531,88110.0,88109.0,0.04706]
[1764029668564,0.00230191,88110.0,88109.0,0.04706]
[1764029668861,0.00230191,88110.0,88109.0,0.47706]
[1764029669255,0.00130181,88110.0,88109.0,0.4780601]
[1764029669461,0.00010388,88110.0,88109.0,0.4780601]
[1764029670367,0.0243211,88128.0,88124.0,0.0113515]
[1764029670368,0.4179012,88127.0,88124.0,0.0113515]
[1764029670565,0.4179012,88127.0,88110.0,0.00758]
[1764029670566,0.4179012,88127.0,88126.0,0.0460601]
[1764029670765,0.4198318,88127.0,88126.0,0.0460601]
[1764029671159,0.0571023,88118.0,88117.0,0.19227534]
[1764029671364,0.0571031,88112.0,88111.0,0.12662561]
[1764029671562,0.0590337,88112.0,88111.0,0.12762571]
[1764029671764,0.0590337,88112.0,88111.0,0.54762571]
[1764029671969,0.0355537,88112.0,88111.0,0.51762571]
[1764029672270,0.0355537,88112.0,88111.0,0.12762571]
[1764029672271,0.0590337,88112.0,88111.0,0.12762571]
[1764029674262,0.0590337,88112.0,88111.0,0.10492571]
[1764029674469,0.0590337,88112.0,88111.0,0.08256571]
[1764029674866,0.0590337,88112.0,88111.0,0.08156561]
[1764029675763,0.0590337,88112.0,88111.0,0.12762571]
[1764029676358,0.0132837,88112.0,88111.0,0.0460601]
[1764029676561,0.0590337,88112.0,88111.0,0.0460601]
[1764029678965,0.0590337,88112.0,88111.0,0.0010001]
[1764029679169,0.0571049,88098.0,88091.0,0.3608]
[1764029679360,0.05872,88072.0,88071.0,0.09926322]
[1764029679565,0.04575,88071.0,88054.0,0.09029912]
[1764029679763,0.0476806,88071.0,88070.0,0.05334011]
[1764029679963,0.0476806,88071.0,88070.0,0.00828011]
[1764029680169,0.04575,88059.0,88058.0,0.04402]
[1764029680365,0.04794803,88059.0,88058.0,0.06926]
[1764029680571,0.00219803,88059.0,88058.0,0.44926]
[1764029680770,0.36199803,88059.0,88058.0,0.60266]
[1764029681069,0.36199803,88059.0,88058.0,0.53266]
[1764029681272,0.36199803,88059.0,88058.0,0.07548]
[1764029681459,0.36199803,88059.0,88058.0,0.45548]
[1764029681866,0.36199803,88059.0,88058.0,0.635]
[1764029682268,0.3627307,88059.0,88058.0,0.635]
[1764029682469,0.3608,88059.0,88058.0,0.635]
[1764029682873,9.552e-05,88071.0,88070.0,0.07448]
[1764029683071,0.00202622,88071.0,88070.0,0.45548]
[1764029683270,0.07885622,88071.0,88070.0,0.635]
[1764029683470,0.07885622,88071.0,88070.0,0.675]
[1764029683676,0.07885622,88071.0,88070.0,0.07548]
[1764029685078,0.07985622,88071.0,88070.0,0.07548]
[1764029685671,0.08085622,88071.0,88070.0,0.07548]
[1764029686179,0.07985622,88071.0,88070.0,0.07548]
[1764029686383,0.00402622,88071.0,88070.0,0.47548]
[1764029686780,0.00402622,88071.0,88070.0,0.4868385]
[1764029688165,0.3608,88074.0,88073.0,0.07448]
[1764029688166,0.43763,88074.0,88073.0,0.07448]
[1764029688370,0.4509187,88074.0,88073.0,0.41548]
[1764029688585,0.0901187,88074.0,88073.0,0.07548]
[1764029688881,0.4509187,88074.0,88073.0,0.07548]
[1764029689270,0.4519187,88074.0,88073.0,0.07548]
[1764029689486,0.4519187,88074.0,88073.0,0.05373]
[1764029689678,0.4519187,88074.0,88073.0,0.001]
[1764029690183,0.0113597,88061.0,88060.0,0.28739686]
[1764029690387,0.0132904,88061.0,88060.0,0.66504]
[1764029690588,0.0132904,88061.0,88060.0,0.49548]
[1764029690776,0.0019307,88061.0,88060.0,0.70504]
[1764029690978,0.0019307,88061.0,88060.0,0.07548]
[1764029691181,0.0787607,88061.0,88060.0,0.51548]
[1764029691372,0.0787607,88061.0,88060.0,0.07548]
[1764029691773,0.0019307,88061.0,88060.0,0.07548]
[1764029691979,0.0019307,88061.0,88060.0,0.86628]
[1764029692280,0.0113588,88069.0,88068.0,0.07448]
[1764029692485,0.0019307,88069.0,88068.0,0.46548]
[1764029692783,0.0019307,88069.0,88068.0,0.51548]
[1764029693181,0.0019307,88069.0,88068.0,0.07548]
[1764029693383,0.0029307,88069.0,88068.0,0.07548]
[1764029693779,0.002,88069.0,88068.0,0.4768388]
[1764029695274,0.00017029,88080.0,88079.0,0.1370574]
[1764029695474,0.00017029,88080.0,88079.0,0.7176574]
[1764029696472,0.00117029,88080.0,88079.0,0.7176574]
[1764029696881,0.00217029,88080.0,88079.0,0.7176574]
[1764029699378,0.00217029,88080.0,88079.0,0.6976574]
[1764029700386,0.00410099,88080.0,88079.0,0.6976574]
[1764029700586,0.00410099,88080.0,88079.0,0.3063]
[1764029700982,0.1237,88078.0,88077.0,0.08156561]
[1764029701189,0.1256307,88078.0,88077.0,0.08156561]
[1764029702083,0.1266307,88078.0,88077.0,0.08156561]
[1764029702486,0.0113597,88061.0,88060.0,0.39323042]
[1764029702686,0.0113597,88061.0,88060.0,0.1267]
[1764029702687,0.1369904,88061.0,88060.0,0.1267]
[1764029702883,0.1369904,88061.0,88060.0,0.30626]
[1764029703384,0.1369904,88061.0,88060.0,0.27482616]
[1764029703581,0.1369904,88061.0,88039.0,0.3608]
[1764029703582,0.1619,88040.0,88039.0,0.0813334]
[1764029703787,0.1237,88030.0,88029.0,0.0813334]
[1764029703985,0.06029,88021.0,88018.0,0.0113652]
[1764029704299,0.0113646,88023.0,88020.0,0.001]
[1764029704490,0.1256307,88021.0,88020.0,0.001]
[1764029704997,0.0019307,88021.0,88020.0,0.001]
[1764029705693,0.0019307,88021.0,88020.0,0.002]
[1764029705897,0.0009307,88021.0,88020.0,0.001]
[1764029706092,0.0612207,88021.0,88020.0,0.001]
[1764029706594,0.1246307,88021.0,88020.0,0.001]
[1764029706980,0.1350655,88016.0,88015.0,0.0001356]
[1764029707293,0.1369962,88016.0,88015.0,0.0001356]
[1764029708189,0.1237,88007.0,88006.0,0.00706303]
[1764029708389,0.0019307,88007.0,88006.0,0.76886303]
[1764029708598,0.3608,88021.0,88020.0,0.011365]
[1764029708793,0.3627307,88021.0,88020.0,0.322365]
[1764029709088,0.36287827,88021.0,88020.0,0.292365]
[1764029709788,0.00207827,88021.0,88020.0,0.473945]
[1764029709992,0.00014757,88021.0,88020.0,0.473945]
[1764029710294,1.197e-05,88021.0,88020.0,0.473945]
[1764029710997,0.3608,88038.0,88037.0,0.0113628]
[1764029711297,0.3627307,88038.0,88037.0,0.4520428]
[1764029711494,0.4291407,88038.0,88037.0,0.4520428]
[1764029711685,0.4291407,88038.0,88037.0,0.18068]
[1764029711686,0.4894707,88038.0,88037.0,0.18068]
[1764029712297,0.4291407,88038.0,88037.0,0.18068]
[1764029712487,0.0019307,88038.0,88037.0,0.58068]
[1764029712685,0.36097039,88046.0,88037.0,0.58068]
[1764029712886,0.36290109,88046.0,88039.0,0.3608]
[1764029713095,0.00210109,88046.0,88045.0,0.001]
[1764029713481,0.12884109,88046.0,88045.0,0.001]
[1764029713886,0.12884109,88046.0,88045.0,0.021]
[1764029714286,0.00210109,88046.0,88045.0,0.021]
[1764029714492,0.00310109,88046.0,88045.0,0.021]
[1764029714890,0.12984109,88046.0,88045.0,0.001]
[1764029715089,0.49064109,88046.0,88045.0,0.001]
[1764029715286,0.49164109,88046.0,88045.0,0.001]
[1764029717600,0.1381028,88037.0,88036.0,0.26753042]
[1764029717797,0.1400335,88037.0,88036.0,0.081]
[1764029718295,0.1400335,88037.0,88036.0,0.08]
[1764029718495,0.12674,88030.0,88029.0,0.12502039]
[1764029718800,0.1400344,88030.0,88029.0,0.12602039]
[1764029720395,0.0019307,88030.0,88029.0,0.14602039]
[1764029721102,0.0019307,88030.0,88029.0,0.50682039]
[1764029721298,0.0019307,88030.0,88029.0,0.89682039]
[1764029722597,0.1286707,88030.0,88029.0,0.00117039]
[1764029722997,0.1286707,88030.0,88029.0,0.12602039]
[1764029723398,0.1286707,88030.0,88029.0,0.06220039]
[1764029723800,0.1286707,88030.0,88029.0,0.00117039]
[1764029724103,0.1286707,88030.0,88029.0,0.06220039]
[1764029724294,0.1286707,88030.0,88029.0,0.00017039]
[1764029724704,0.1286707,88030.0,88029.0,0.12602039]
[1764029725397,0.1286707,88030.0,88029.0,0.16602039]
[1764029725599,0.1400344,88030.0,88029.0,0.12602039]
[1764029725903,0.1400344,88030.0,88029.0,0.16602039]
[1764029727100,0.1400344,88030.0,88029.0,0.05117039]
[1764029728001,0.1400344,88030.0,88029.0,0.00117039]
[1764029728896,0.1400344,88030.0,88029.0,0.00017039]
[1764029729094,0.1381047,88022.0,88021.0,0.03966]
[1764029729397,0.1400354,88022.0,88021.0,0.03966]
[1764029729702,0.12674,88021.0,88020.0,0.0019]
[1764029729901,0.1286707,88021.0,88020.0,0.0019]
[1764029733106,0.1286707,88021.0,88020.0,0.16775]
[1764029733606,0.0019307,88021.0,88020.0,0.16775]
[1764029733907,0.0019307,88021.0,88020.0,0.20694]
[1764029734691,0.0019307,88021.0,88020.0,0.16694]
[1764029734895,0.0019307,88021.0,88020.0,0.49694]
[1764029735904,0.0019307,88021.0,88020.0,0.16694]
[1764029736101,0.0019307,88021.0,88020.0,0.54694]
[1764029736701,0.0019307,88021.0,88020.0,0.16694]
[1764029736906,0.0019307,88021.0,88020.0,0.27694]
[1764029737608,0.0019307,88021.0,88020.0,0.52694]
[1764029738701,0.0683407,88021.0,88020.0,0.209115]
[1764029738900,0.0683407,88021.0,88020.0,0.19775]
[1764029739101,0.1286707,88021.0,88020.0,0.19775]
[1764029739511,0.1286707,88021.0,88020.0,0.12775]
[1764029740004,0.1286707,88021.0,88020.0,0.20775]
[1764029740602,0.1286707,88021.0,88020.0,0.43775]
[1764029740910,0.0132956,88021.0,88020.0,0.19775]
[1764029741206,0.1404556,88021.0,88020.0,0.13393]
[1764029741507,0.1404556,88021.0,88020.0,0.1953]
[1764029742206,0.0132956,88021.0,88020.0,0.1953]
[1764029742398,0.0019307,88021.0,88020.0,0.1253]
[1764029742595,0.0019307,88021.0,88020.0,0.5053]
[1764029743005,0.0019307,88021.0,88020.0,0.4803]
[1764029744010,0.0644607,88021.0,88020.0,0.1903]
[1764029744613,0.0019307,88021.0,88020.0,0.1903]
[1764029744804,0.1290907,88021.0,88020.0,0.1903]
[1764029745809,0.0019307,88021.0,88020.0,0.1903]
[1764029746003,0.0019307,88021.0,88020.0,0.4803]
[1764029746401,0.0019307,88021.0,88020.0,0.2003]
[1764029746604,0.0644607,88021.0,88020.0,0.2003]
[1764029747408,0.1290907,88021.0,88020.0,0.2003]
[1764029748907,0.1290907,88021.0,88020.0,0.211665]
[1764029749106,0.1290907,88021.0,88020.0,0.2003]
[1764029749917,0.1290907,88021.0,88020.0,0.4903]
[1764029751115,0.1404556,88021.0,88020.0,0.4903]
[1764029751818,0.1290907,88021.0,88020.0,0.4903]
[1764029752111,0.16383,88032.0,88031.0,0.12532]
[1764029752312,0.1290907,88032.0,88031.0,0.21632]
[1764029752512,0.1290907,88032.0,88031.0,0.12632]
[1764029752815,0.1657607,88032.0,88031.0,0.12632]
[1764029754712,0.1657607,88032.0,88031.0,0.001]
[1764029755318,0.1377846,88023.0,88022.0,0.33670252]
[1764029755516,0.5005153,88023.0,88022.0,0.14465]
[1764029755711,0.134605,88020.0,88019.0,0.1202]
[1764029755911,0.1346058,88014.0,88013.0,0.45317036]
[1764029756110,0.1365365,88014.0,88013.0,0.58938]
[1764029756316,0.1365365,88014.0,88013.0,0.67113269]
[1764029757218,0.1365365,88014.0,88013.0,0.58938]
[1764029758012,0.1365365,88014.0,88013.0,0.6721396]
[1764029758221,0.1365365,88014.0,88013.0,0.47167]
[1764029758523,0.1365365,88014.0,88013.0,0.59038]
[1764029758826,0.0019307,88014.0,88013.0,0.59038]
[1764029759523,0.1346048,88022.0,88021.0,0.11871]
[1764029759722,0.1365355,88022.0,88021.0,0.24971]
[1764029759923,0.1365355,88022.0,88021.0,0.131]
[1764029760117,0.1365355,88022.0,88021.0,0.001]
[1764029760424,0.1365355,88022.0,88021.0,0.22971]
[1764029760620,0.1365355,88022.0,88021.0,0.001]
[1764029761120,0.1251707,88022.0,88021.0,0.06001]
[1764029761324,0.1251707,88022.0,88021.0,0.22971]
[1764029765214,0.0019307,88022.0,88021.0,0.22971]
[1764029765418,0.0612807,88022.0,88021.0,0.24971]
[1764029765722,0.1251707,88022.0,88021.0,0.24971]
[1764029768022,0.1251707,88022.0,88021.0,0.11971]
[1764029768222,0.1251707,88022.0,88021.0,0.57971]
[1764029768828,0.1365354,88022.0,88021.0,0.11971]
[1764029769030,0.1346055,88016.0,88015.0,0.2019596]
[1764029769232,0.1365362,88016.0,88015.0,0.5412]
[1764029769438,0.1365362,88016.0,88015.0,0.60021]